fUST/lending_fUST_20240907
["ID","MTS","AMOUNT","RATE_DAILY","PERIOD"]
[337400955,1725640272424,-500.0,0.00020547,2]
[337400956,1725640272439,-500.0,0.00020547,2]
[337400957,1725640272454,-746.96,0.00020547,2]
[337400958,1725640272470,-579.79,0.00020547,2]
[337400959,1725640272484,-500.0,0.00020547,2]
[337400960,1725640272499,-500.0,0.00020547,2]
[337400961,1725640272514,-500.0,0.00020547,2]
[337400962,1725640272529,-741.65,0.00020547,2]
[337400963,1725640272544,-500.0,0.00020547,2]
[337400964,1725640272559,-554.41,0.00020547,2]
[337400965,1725640272574,-500.0,0.00020547,2]
[337400966,1725640272588,-500.0,0.00020547,2]
[337400967,1725640272604,-500.0,0.00020547,2]
[337400968,1725640272619,-589.04,0.00020547,2]
[337400969,1725640272638,-814.33,0.00020547,2]
[337400970,1725640272653,-500.0,0.00020547,2]
[337400971,1725640272669,-500.0,0.00020547,2]
[337400972,1725640272684,-500.0,0.00020547,2]
[337400973,1725640272698,-500.0,0.00020547,2]
[337400974,1725640272713,-500.0,0.00020547,2]
[337400975,1725640272726,-500.35977735,0.00020547,2]
[337400976,1725640272736,-500.0,0.00020547,2]
[337400977,1725640272746,-500.0,0.00020547,2]
[337400978,1725640272758,-500.0,0.00020547,2]
[337400979,1725640272767,-500.0,0.00020547,2]
[337400980,1725640272778,-500.0,0.00020547,2]
[337400981,1725640272788,-500.0,0.00020547,2]
[337400982,1725640272797,-430.95708201,0.00020547,2]
[337400983,1725640272807,-500.0,0.00020547,2]
[337400984,1725640272817,-500.0,0.00020547,2]
[337400985,1725640273010,-500.0,0.00020547,2]
[337400986,1725640273033,-500.0,0.00020547,2]
[337400987,1725640273051,-500.0,0.00020547,2]
[337400988,1725640273060,-500.0,0.00020547,2]
[337400989,1725640273070,-500.0,0.00020547,2]
[337400990,1725640273084,-500.0,0.00020547,2]
[337400991,1725640273093,-500.0,0.00020547,2]
[337400992,1725640273102,-500.0,0.00020547,2]
[337400993,1725640273111,-503.27311565,0.00020547,2]
[337400994,1725640273122,-500.0,0.00020547,2]
[337400995,1725640273133,-500.0,0.00020547,2]
[337400996,1725640273143,-500.0,0.00020547,2]
[337400997,1725640273155,-500.0,0.00020547,2]
[337400998,1725640273165,-500.0,0.00020547,2]
[337400999,1725640273174,-500.0,0.00020547,2]
[337401000,1725640273184,-589.16,0.00020547,2]
[337401001,1725640273194,-500.0,0.00020547,2]
[337401002,1725640273203,-500.0,0.00020547,2]
[337401003,1725640273212,-500.0,0.00020547,2]
[337401004,1725640273221,-500.0,0.00020547,2]
[337401005,1725640273230,-500.0,0.00020547,2]
[337401006,1725640273240,-157.190556,0.00020547,2]
[337401007,1725640273251,-500.0,0.00020547,2]
[337401008,1725640273261,-500.0,0.00020547,2]
[337401009,1725640273270,-157.190556,0.00020547,2]
[337401010,1725640273280,-500.0,0.00020547,2]
[337401011,1725640273289,-500.0,0.00020547,2]
[337401012,1725640273298,-987.27,0.00020547,2]
[337401013,1725640273308,-500.0,0.00020547,2]
[337401014,1725640273318,-500.0,0.00020547,2]
[337401015,1725640273327,-795.13,0.00020547,2]
[337401016,1725640273337,-500.0,0.00020547,2]
[337401017,1725640273347,-618.42,0.00020547,2]
[337401018,1725640273357,-500.0,0.00020547,2]
[337401019,1725640273367,-500.0,0.00020547,2]
[337401020,1725640273377,-651.04,0.00020547,2]
[337401021,1725640273388,-500.0,0.00020547,2]
[337401022,1725640273398,-821.38,0.00020547,2]
[337401023,1725640273407,-151.0,0.00020547,2]
[337401024,1725640273417,-500.0,0.00020547,2]
[337401025,1725640273426,-500.0,0.00020547,2]
[337401026,1725640273436,-500.0,0.00020547,2]
[337401027,1725640273445,-592.44,0.00020547,2]
[337401028,1725640273455,-500.0,0.00020547,2]
[337401029,1725640273465,-500.0,0.00020547,2]
[337401030,1725640273474,-1272.15,0.00020547,2]
[337401031,1725640273483,-1117.88,0.00020547,2]
[337401032,1725640273493,-151.0,0.00020547,2]
[337401033,1725640273502,-500.0,0.00020547,2]
[337401034,1725640273512,-151.0,0.00020547,2]
[337401035,1725640273522,-1080.6,0.00020547,2]
[337401036,1725640273531,-151.0,0.00020547,2]
[337401037,1725640273540,-500.0,0.00020547,2]
[337401038,1725640273551,-1014.72,0.00020547,2]
[337401039,1725640273561,-151.0,0.00020547,2]
[337401040,1725640273571,-500.0,0.00020547,2]
[337401041,1725640273581,-500.0,0.00020547,2]
[337401042,1725640273590,-500.0,0.00020547,2]
[337401043,1725640273600,-500.0,0.00020547,2]
[337401044,1725640273611,-500.0,0.00020547,2]
[337401045,1725640273621,-500.0,0.00020547,2]
[337401046,1725640273635,-151.0,0.00020547,2]
[337401047,1725640273646,-500.0,0.00020547,2]
[337401048,1725640273656,-500.0,0.00020547,2]
[337401049,1725640273666,-500.0,0.00020547,2]
[337401050,1725640273675,-500.0,0.00020547,2]
[337401051,1725640273686,-772.11,0.00020547,2]
[337401052,1725640273695,-500.0,0.00020547,2]
[337401053,1725640273705,-814.17,0.00020547,2]
[337401054,1725640273715,-500.0,0.00020547,2]
[337401055,1725640273724,-500.0,0.00020547,2]
[337401056,1725640273734,-500.0,0.00020547,2]
[337401057,1725640273745,-500.0,0.00020547,2]
[337401058,1725640273756,-500.0,0.00020547,2]
[337401059,1725640273765,-500.0,0.00020547,2]
[337401060,1725640273775,-500.0,0.00020547,2]
[337401061,1725640273785,-500.0,0.00020547,2]
[337401062,1725640273794,-500.0,0.00020547,2]
[337401063,1725640273804,-500.0,0.00020547,2]
[337401064,1725640273815,-500.0,0.00020547,2]
[337401065,1725640273825,-500.0,0.00020547,2]
[337401066,1725640273835,-500.0,0.00020547,2]
[337401067,1725640273844,-500.0,0.00020547,2]
[337401068,1725640273854,-500.0,0.00020547,2]
[337401069,1725640273863,-500.0,0.00020547,2]
[337401070,1725640273873,-500.59,0.00020547,2]
[337401071,1725640273885,-500.0,0.00020547,2]
[337401072,1725640273895,-500.0,0.00020547,2]
[337401073,1725640273904,-500.0,0.00020547,2]
[337401074,1725640273914,-500.0,0.00020547,2]
[337401075,1725640273924,-1567.65,0.00020547,2]
[337401076,1725640273934,-500.0,0.00020547,2]
[337401077,1725640273944,-575.36215573,0.00020547,2]
[337401078,1725640273953,-939.4,0.00020547,2]
[337401079,1725640273963,-500.0,0.00020547,2]
[337401080,1725640273972,-567.34,0.00020547,2]
[337401081,1725640273981,-500.0,0.00020547,2]
[337401082,1725640273991,-500.0,0.00020547,2]
[337401083,1725640274000,-500.0,0.00020547,2]
[337401084,1725640274010,-639.12,0.00020547,2]
[337401085,1725640274019,-500.0,0.00020547,2]
[337401086,1725640274029,-1180.54,0.00020547,2]
[337401087,1725640274039,-726.62,0.00020547,2]
[337401088,1725640274048,-500.0,0.00020547,2]
[337401089,1725640274057,-680.99,0.00020547,2]
[337401090,1725640274067,-968.59,0.00020547,2]
[337401091,1725640274077,-500.0,0.00020547,2]
[337401092,1725640274089,-500.0,0.00020547,2]
[337401093,1725640274099,-231.165605,0.00020547,2]
[337401094,1725640274108,-500.0,0.00020547,2]
[337401095,1725640274119,-500.0,0.00020547,2]
[337401096,1725640274129,-231.165605,0.00020547,2]
[337401097,1725640274141,-500.0,0.00020547,2]
[337401098,1725640274150,-164.324719,0.00020547,2]
[337401099,1725640274160,-500.0,0.00020547,2]
[337401100,1725640274171,-651.15,0.00020547,2]
[337401101,1725640274180,-164.324719,0.00020547,2]
[337401102,1725640274189,-521.44,0.00020547,2]
[337401103,1725640274199,-500.0,0.00020547,2]
[337401104,1725640274208,-500.0,0.00020547,2]
[337401105,1725640274218,-275.0,0.00020547,2]
[337401106,1725640274228,-500.0,0.00020547,2]
[337401107,1725640274237,-599.48,0.00020547,2]
[337401108,1725640274247,-500.0,0.00020547,2]
[337401109,1725640274257,-500.0,0.00020547,2]
[337401110,1725640274266,-500.0,0.00020547,2]
[337401111,1725640274275,-500.0,0.00020547,2]
[337401112,1725640274285,-500.0,0.00020547,2]
[337401113,1725640274294,-1405.05,0.00020547,2]
[337401114,1725640274303,-500.0,0.00020547,2]
[337401115,1725640274312,-615.35,0.00020547,2]
[337401116,1725640274321,-500.0,0.00020547,2]
[337401117,1725640274331,-500.0,0.00020547,2]
[337401118,1725640274340,-500.0,0.00020547,2]
[337401119,1725640274349,-500.0,0.00020547,2]
[337401120,1725640274358,-500.0,0.00020547,2]
[337401121,1725640274368,-606.55,0.00020547,2]
[337401122,1725640274377,-500.0,0.00020547,2]
[337401123,1725640274390,-500.0,0.00020547,2]
[337401124,1725640274399,-151.0,0.00020547,2]
[337401125,1725640274409,-698.82,0.00020547,2]
[337401126,1725640274418,-500.0,0.00020547,2]
[337401127,1725640274428,-500.0,0.00020547,2]
[337401128,1725640274437,-952.82,0.00020547,2]
[337401129,1725640274447,-622.55,0.00020547,2]
[337401130,1725640274457,-500.0,0.00020547,2]
[337401131,1725640274467,-500.0,0.00020547,2]
[337401132,1725640274477,-500.0,0.00020547,2]
[337401133,1725640274486,-500.0,0.00020547,2]
[337401134,1725640274496,-500.0,0.00020547,2]
[337401135,1725640274505,-979.78,0.00020547,2]
[337401136,1725640274515,-500.0,0.00020547,2]
[337401137,1725640274524,-500.0,0.00020547,2]
[337401138,1725640274534,-500.0,0.00020547,2]
[337401139,1725640274544,-500.0,0.00020547,2]
[337401140,1725640274554,-500.0,0.00020547,2]
[337401141,1725640274563,-560.92191,0.00020547,2]
[337401142,1725640274573,-500.0,0.00020547,2]
[337401143,1725640274584,-500.0,0.00020547,2]
[337401144,1725640274593,-500.0,0.00020547,2]
[337401145,1725640274603,-500.0,0.00020547,2]
[337401146,1725640274613,-418.963009,0.00020547,2]
[337401147,1725640274623,-645.35,0.00020547,2]
[337401148,1725640274633,-819.45,0.00020547,2]
[337401149,1725640274644,-500.0,0.00020547,2]
[337401150,1725640274654,-418.963009,0.00020547,2]
[337401151,1725640274665,-500.0,0.00020547,2]
[337401152,1725640274675,-733.98,0.00020547,2]
[337401153,1725640274684,-500.0,0.00020547,2]
[337401154,1725640274693,-151.0,0.00020547,2]
[337401155,1725640274702,-175.642776,0.00020547,2]
[337401156,1725640274712,-612.76,0.00020547,2]
[337401157,1725640274722,-500.0,0.00020547,2]
[337401158,1725640274731,-537.89,0.00020547,2]
[337401159,1725640274740,-175.642776,0.00020547,2]
[337401160,1725640274751,-170.654444,0.00020547,2]
[337401161,1725640274760,-851.49,0.00020547,2]
[337401162,1725640274769,-500.0,0.00020547,2]
[337401163,1725640274779,-500.0,0.00020547,2]
[337401164,1725640274788,-500.0,0.00020547,2]
[337401165,1725640274797,-1053.94,0.00020547,2]
[337401166,1725640274807,-894.83,0.00020547,2]
[337401167,1725640274817,-500.0,0.00020547,2]
[337401168,1725640274827,-583.43,0.00020547,2]
[337401169,1725640274836,-500.0,0.00020547,2]
[337401170,1725640274845,-1098.68,0.00020547,2]
[337401171,1725640274854,-500.0,0.00020547,2]
[337401172,1725640274863,-1626.43,0.00020547,2]
[337401173,1725640274873,-500.0,0.00020547,2]
[337401174,1725640274884,-500.0,0.00020547,2]
[337401175,1725640274894,-500.0,0.00020547,2]
[337401176,1725640274903,-500.0,0.00020547,2]
[337401177,1725640274913,-1091.102804,0.00020547,2]
[337401178,1725640274922,-500.0,0.00020547,2]
[337401179,1725640274933,-500.0,0.00020547,2]
[337401180,1725640274942,-744.4,0.00020547,2]
[337401181,1725640274951,-1091.102804,0.00020547,2]
[337401182,1725640274961,-500.0,0.00020547,2]
[337401183,1725640274970,-338.15207619,0.00020547,2]
[337401184,1725640274980,-822.811423,0.00020547,2]
[337401185,1725640274990,-1009.25,0.00020547,2]
[337401186,1725640274999,-500.0,0.00020547,2]
[337401187,1725640275010,-500.0,0.00020547,2]
[337401188,1725640275019,-822.811423,0.00020547,2]
[337401189,1725640275028,-762.37,0.00020547,2]
[337401190,1725640275038,-683.128628,0.00020547,2]
[337401191,1725640275047,-560.08,0.00020547,2]
[337401192,1725640275058,-945.7,0.00020547,2]
[337401193,1725640275068,-524.61904933,0.00020547,2]
[337401194,1725640275083,-500.0,0.00020547,2]
[337401195,1725640275092,-558.5,0.00020547,2]
[337401196,1725640275102,-500.0,0.00020547,2]
[337401197,1725640275112,-683.128628,0.00020547,2]
[337401198,1725640275123,-500.0,0.00020547,2]
[337401199,1725640275135,-151.0,0.00020547,2]
[337401200,1725640275146,-33723.53,0.00020547,2]
[337401201,1725640275158,-777.59,0.00020547,2]
[337401202,1725640275168,-151.0,0.00020547,2]
[337401203,1725640275179,-500.0,0.00020547,2]
[337401204,1725640275189,-1397.71,0.00020547,2]
[337401205,1725640275198,-987.521377,0.00020547,2]
[337401206,1725640275209,-987.521377,0.00020547,2]
[337401207,1725640275219,-878.69,0.00020547,2]
[337401208,1725640275230,-1056.1,0.00020547,2]
[337401209,1725640275241,-151.0,0.00020547,2]
[337401210,1725640275252,-500.0,0.00020547,2]
[337401211,1725640275263,-500.0,0.00020547,2]
[337401212,1725640275272,-500.0,0.00020547,2]
[337401213,1725640275281,-500.0,0.00020547,2]
[337401214,1725640275291,-1114.04,0.00020547,2]
[337401215,1725640275300,-610.72,0.00020547,2]
[337401216,1725640275310,-500.0,0.00020547,2]
[337401217,1725640275319,-500.0,0.00020547,2]
[337401218,1725640275328,-922.608772,0.00020547,2]
[337401219,1725640275338,-500.0,0.00020547,2]
[337401220,1725640275348,-500.0,0.00020547,2]
[337401221,1725640275357,-500.0,0.00020547,2]
[337401222,1725640275366,-151.0,0.00020547,2]
[337401223,1725640275376,-500.0,0.00020547,2]
[337401224,1725640275387,-922.608772,0.00020547,2]
[337401225,1725640275396,-548.85,0.00020547,2]
[337401226,1725640275405,-614.18,0.00020547,2]
[337401227,1725640275414,-1172.77,0.00020547,2]
[337401228,1725640275423,-500.0,0.00020547,2]
[337401229,1725640275432,-500.0,0.00020547,2]
[337401230,1725640275441,-687.0,0.00020547,2]
[337401231,1725640275453,-1755.48,0.00020547,2]
[337401232,1725640275463,-500.0,0.00020547,2]
[337401233,1725640275474,-531.9,0.00020547,2]
[337401234,1725640275483,-500.0,0.00020547,2]
[337401235,1725640275492,-500.0,0.00020547,2]
[337401236,1725640275502,-151.0,0.00020547,2]
[337401237,1725640275512,-500.0,0.00020547,2]
[337401238,1725640275521,-2286.81,0.00020547,2]
[337401239,1725640275531,-522.05,0.00020547,2]
[337401240,1725640275541,-151.0,0.00020547,2]
[337401241,1725640275551,-500.0,0.00020547,2]
[337401242,1725640275561,-500.0,0.00020547,2]
[337401243,1725640275570,-500.0,0.00020547,2]
[337401244,1725640275579,-500.0,0.00020547,2]
[337401245,1725640275589,-20240.57,0.00020547,2]
[337401246,1725640275598,-500.0,0.00020547,2]
[337401247,1725640275608,-151.0,0.00020547,2]
[337401248,1725640275617,-500.0,0.00020547,2]
[337401249,1725640275627,-500.0,0.00020547,2]
[337401250,1725640275640,-500.0,0.00020547,2]
[337401251,1725640275650,-151.0,0.00020547,2]
[337401252,1725640275660,-500.0,0.00020547,2]
[337401253,1725640275670,-500.0,0.00020547,2]
[337401254,1725640275680,-500.0,0.00020547,2]
[337401255,1725640275689,-500.0,0.00020547,2]
[337401256,1725640275699,-151.0,0.00020547,2]
[337401257,1725640275709,-1691.2,0.00020547,2]
[337401258,1725640275719,-500.0,0.00020547,2]
[337401259,1725640275728,-500.0,0.00020547,2]
[337401260,1725640275738,-48097.67,0.00020547,2]
[337401261,1725640275747,-151.0,0.00020547,2]
[337401262,1725640275760,-1464.098608,0.00020547,2]
[337401263,1725640275770,-151.0,0.00020547,2]
[337401264,1725640275781,-1062.3,0.00020547,2]
[337401265,1725640275790,-500.0,0.00020547,2]
[337401266,1725640275800,-670.38,0.00020547,2]
[337401267,1725640275809,-1757.36,0.00020547,2]
[337401268,1725640275819,-151.0,0.00020547,2]
[337401269,1725640275828,-1464.098608,0.00020547,2]
[337401270,1725640275838,-500.0,0.00020547,2]
[337401271,1725640275847,-1817.39,0.00020547,2]
[337401272,1725640275857,-500.0,0.00020547,2]
[337401273,1725640275866,-1278.16,0.00020547,2]
[337401274,1725640275876,-500.0,0.00020547,2]
[337401275,1725640275888,-1440.55,0.00020547,2]
[337401276,1725640275898,-500.0,0.00020547,2]
[337401277,1725640275907,-500.0,0.00020547,2]
[337401278,1725640275917,-500.0,0.00020547,2]
[337401279,1725640275927,-1050.81,0.00020547,2]
[337401280,1725640275936,-1410.37,0.00020547,2]
[337401281,1725640276077,-766.12,0.00020547,2]
[337401282,1725640276089,-500.0,0.00020547,2]
[337401283,1725640276098,-500.0,0.00020547,2]
[337401284,1725640276108,-2052.27,0.00020547,2]
[337401285,1725640276117,-843.01,0.00020547,2]
[337401286,1725640276127,-4146.25,0.00020547,2]
[337401287,1725640276139,-500.0,0.00020547,2]
[337401288,1725640276148,-151.0,0.00020547,2]
[337401289,1725640276157,-2102.07,0.00020547,2]
[337401290,1725640276169,-346.30352449,0.00020547,2]
[337401291,1725640276178,-608.97,0.00020547,2]
[337401292,1725640276188,-151.0,0.00020547,2]
[337401293,1725640276197,-500.0,0.00020547,2]
[337401294,1725640276206,-881.2,0.00020547,2]
[337401295,1725640276216,-1652.44,0.00020547,2]
[337401296,1725640276225,-500.0,0.00020547,2]
[337401297,1725640276234,-1872.26,0.00020547,2]
[337401298,1725640276243,-500.0,0.00020547,2]
[337401299,1725640276253,-151.0,0.00020547,2]
[337401300,1725640276262,-816.45,0.00020547,2]
[337401301,1725640276271,-500.0,0.00020547,2]
[337401302,1725640276280,-1401.93,0.00020547,2]
[337401303,1725640276290,-151.0,0.00020547,2]
[337401304,1725640276299,-533.17497395,0.00020547,2]
[337401305,1725640276308,-2544.68,0.00020547,2]
[337401306,1725640276318,-500.0,0.00020547,2]
[337401307,1725640276327,-579.66193534,0.00020547,2]
[337401308,1725640276336,-500.0,0.00020547,2]
[337401309,1725640276346,-923.74,0.00020547,2]
[337401310,1725640276355,-185.732543,0.00020547,2]
[337401311,1725640276364,-500.0,0.00020547,2]
[337401312,1725640276373,-500.0,0.00020547,2]
[337401313,1725640276383,-185.732543,0.00020547,2]
[337401314,1725640276392,-500.0,0.00020547,2]
[337401315,1725640276402,-500.0,0.00020547,2]
[337401316,1725640276411,-823.91,0.00020547,2]
[337401317,1725640276420,-500.0,0.00020547,2]
[337401318,1725640276429,-500.0,0.00020547,2]
[337401319,1725640276439,-500.0,0.00020547,2]
[337401320,1725640276449,-500.0,0.00020547,2]
[337401321,1725640276458,-500.0,0.00020547,2]
[337401322,1725640276467,-588.31,0.00020547,2]
[337401323,1725640276477,-500.0,0.00020547,2]
[337401324,1725640276488,-744.07,0.00020547,2]
[337401325,1725640276498,-500.0,0.00020547,2]
[337401326,1725640276508,-500.0,0.00020547,2]
[337401327,1725640276518,-151.0,0.00020547,2]
[337401328,1725640276529,-653.77,0.00020547,2]
[337401329,1725640276540,-6517.01,0.00020547,2]
[337401330,1725640276550,-151.0,0.00020547,2]
[337401331,1725640276559,-749.51,0.00020547,2]
[337401332,1725640276569,-520.83,0.00020547,2]
[337401333,1725640276578,-620.83,0.00020547,2]
[337401334,1725640276588,-500.0,0.00020547,2]
[337401335,1725640276597,-845.97,0.00020547,2]
[337401336,1725640276609,-1046.134196,0.00020547,2]
[337401337,1725640276618,-500.0,0.00020547,2]
[337401338,1725640276628,-751.04,0.00020547,2]
[337401339,1725640276642,-1046.134196,0.00020547,2]
[337401340,1725640276651,-500.0,0.00020547,2]
[337401341,1725640276661,-913.96,0.00020547,2]
[337401342,1725640276671,-668.08,0.00020547,2]
[337401343,1725640276681,-500.0,0.00020547,2]
[337401344,1725640276690,-500.62228,0.00020547,2]
[337401345,1725640276699,-500.0,0.00020547,2]
[337401346,1725640276708,-569.4,0.00020547,2]
[337401347,1725640276717,-500.0,0.00020547,2]
[337401348,1725640276727,-2285.62,0.00020547,2]
[337401349,1725640276736,-500.62228,0.00020547,2]
[337401350,1725640276747,-500.0,0.00020547,2]
[337401351,1725640276758,-500.0,0.00020547,2]
[337401352,1725640276768,-1234.55,0.00020547,2]
[337401353,1725640276778,-681.99,0.00020547,2]
[337401354,1725640276787,-500.0,0.00020547,2]
[337401355,1725640276797,-500.0,0.00020547,2]
[337401356,1725640276806,-767.97,0.00020547,2]
[337401357,1725640276815,-1265.16,0.00020547,2]
[337401358,1725640276825,-680.01,0.00020547,2]
[337401359,1725640276834,-500.0,0.00020547,2]
[337401360,1725640276844,-1255.54,0.00020547,2]
[337401361,1725640276854,-460.69294442,0.00020547,2]
[337401362,1725640276863,-885.07,0.00020547,2]
[337401363,1725640276873,-500.0,0.00020547,2]
[337401364,1725640276886,-500.0,0.00020547,2]
[337401365,1725640276895,-500.0,0.00020547,2]
[337401366,1725640276905,-619.93,0.00020547,2]
[337401367,1725640276914,-500.0,0.00020547,2]
[337401368,1725640276924,-500.0,0.00020547,2]
[337401369,1725640276933,-500.0,0.00020547,2]
[337401370,1725640276944,-500.0,0.00020547,2]
[337401371,1725640276955,-1085.778674,0.00020547,2]
[337401372,1725640276965,-1640.89,0.00020547,2]
[337401373,1725640276975,-1539.9,0.00020547,2]
[337401374,1725640276985,-1085.778674,0.00020547,2]
[337401375,1725640276995,-500.0,0.00020547,2]
[337401376,1725640277006,-500.0,0.00020547,2]
[337401377,1725640277015,-500.0,0.00020547,2]
[337401378,1725640277025,-500.0,0.00020547,2]
[337401379,1725640277036,-500.0,0.00020547,2]
[337401380,1725640277046,-1397.23,0.00020547,2]
[337401381,1725640277057,-500.0,0.00020547,2]
[337401382,1725640277067,-585.64,0.00020547,2]
[337401383,1725640277080,-48684.53,0.00020547,2]
[337401384,1725640277089,-193.42083445,0.00020547,2]
[337401385,1725640277099,-500.0,0.00020547,2]
[337401386,1725640277108,-790.55,0.00020547,2]
[337401387,1725640277118,-500.0,0.00020547,2]
[337401388,1725640277130,-500.0,0.00020547,2]
[337401389,1725640277143,-232.91115353,0.00020547,2]
[337401390,1725640277155,-500.0,0.00020547,2]
[337401391,1725640277166,-500.0,0.00020547,2]
[337401392,1725640277176,-500.0,0.00020547,2]
[337401393,1725640277185,-181.88234913,0.00020547,2]
[337401394,1725640277196,-866.79,0.00020547,2]
[337401395,1725640277206,-1476.42,0.00020547,2]
[337401396,1725640277216,-500.0,0.00020547,2]
[337401397,1725640277225,-500.0,0.00020547,2]
[337401398,1725640277235,-665.70086621,0.00020702,2]
[337401399,1725640277244,-151.0,0.00020821,2]
[337401400,1725640277254,-151.0,0.00020821,2]
[337401401,1725640277264,-151.0,0.00020821,2]
[337401402,1725640277273,-152.210055,0.00020821,2]
[337401403,1725640277283,-152.210055,0.00020821,2]
[337401404,1725640277293,-500.0,0.00020821,2]
[337401405,1725640277302,-500.0,0.00020821,2]
[337401406,1725640277311,-542.017378,0.00020821,2]
[337401407,1725640277323,-500.0,0.00020821,2]
[337401408,1725640277333,-500.0,0.00020821,2]
[337401409,1725640277343,-500.0,0.00020821,2]
[337401410,1725640277352,-500.0,0.00020821,2]
[337401411,1725640277364,-610.77,0.00020821,2]
[337401412,1725640277373,-500.0,0.00020821,2]
[337401413,1725640277382,-500.0,0.00020821,2]
[337401414,1725640277393,-151.0,0.00020821,2]
[337401415,1725640277402,-500.0,0.00020821,2]
[337401416,1725640277412,-500.0,0.00020821,2]
[337401417,1725640277421,-151.0,0.00020821,2]
[337401418,1725640277431,-500.0,0.00020821,2]
[337401419,1725640277441,-500.0,0.00020821,2]
[337401420,1725640277451,-813.65,0.00020821,2]
[337401421,1725640277461,-500.0,0.00020821,2]
[337401422,1725640277471,-849.4,0.00020821,2]
[337401423,1725640277480,-500.0,0.00020821,2]
[337401424,1725640277490,-532.42934094,0.00020821,2]
[337401425,1725640277499,-500.0,0.00020821,2]
[337401426,1725640277508,-500.0,0.00020821,2]
[337401427,1725640277518,-500.0,0.00020821,2]
[337401428,1725640277527,-307.2070303,0.00020821,2]
[337401429,1725640277538,-500.0,0.00020821,2]
[337401430,1725640277547,-500.0,0.00020821,2]
[337401431,1725640277557,-500.0,0.00020821,2]
[337401432,1725640277567,-252.05661798,0.00020821,2]
[337401433,1725640277577,-500.0,0.00020821,2]
[337401434,1725640277586,-500.0,0.00020821,2]
[337401435,1725640277595,-500.0,0.00020821,2]
[337401436,1725640277604,-500.0,0.00020821,2]
[337401437,1725640277614,-500.0,0.00020821,2]
[337401438,1725640277623,-500.0,0.00020821,2]
[337401439,1725640277635,-500.0,0.00020821,2]
[337401440,1725640277644,-500.0,0.00020821,2]
[337401441,1725640277653,-151.0,0.00020821,2]
[337401442,1725640277663,-500.0,0.00020821,2]
[337401443,1725640277672,-500.0,0.00020821,2]
[337401444,1725640277682,-571.33,0.00020821,2]
[337401445,1725640277691,-151.0,0.00020821,2]
[337401446,1725640277700,-500.0,0.00020821,2]
[337401447,1725640277709,-742.91,0.00020821,2]
[337401448,1725640277718,-500.0,0.00020821,2]
[337401449,1725640277728,-500.0,0.00020821,2]
[337401450,1725640277737,-500.0,0.00020821,2]
[337401451,1725640277746,-500.0,0.00020821,2]
[337401452,1725640277756,-500.0,0.00020821,2]
[337401453,1725640277765,-809.25,0.00020821,2]
[337401454,1725640277774,-500.0,0.00020821,2]